{"text_format":"1","workbook":"xlsx","n_sheets":4,"sheets":["Instrucciones","Relación de gastos","Relación de ingresos","Gastos e ingresos"],"not_rendered":{"charts":0,"images":2,"macros":1,"external_links":0,"defined_names":9,"comments":0,"pivot_tables":0},"unopened":[],"bounds":{"document_bytes":16777216,"sheet_cells":100000,"rows_first":2000,"rows_last":500,"rows_between":2000,"halvings":0,"cell_chars":16384,"cell_head_chars":4096},"cells_cut":0,"cells_raw":0,"read":"whole","date_system":"1900"}

{"sheet":"Instrucciones","index":0,"n_rows":21,"n_cols":8,"rows_kept":21,"cut":false,"hidden":false,"merged":[[11,1,11,17],[16,1,16,17],[18,1,18,17],[19,1,19,3],[10,1,10,17],[2,7,2,11],[3,2,4,17],[5,2,5,17],[7,2,7,17],[9,1,9,17]]}
[]
[]
[null,null,null,null,null,null,null,"Memoria justificativa económica Bc"]
[null,null,"SUBVENCIONES DEL AYUNTAMIENTO DE BARCELONA PARA EL FORTALECIMIENTO DE LA ECONOMÍA SOCIAL Y SOLIDARIA Y POR LA INTERCOOPERACIÓN EN LA ESTRATEGIA #ESSBCN2030 -  ENFORTIM L’ESS 2025"]
[]
[null,null,"Aspectos relevantes relacionados con la justificación"]
[]
[null,null,"INSTRUCCIONES"]
[]
[null,"1. Cumplimentar sólo las celdas en blanco de la pestaña: \"Relación de gastos\" , \"Relación de ingresos\" y \"gastos e ingresos\" con los datos económicos del proyecto"]
[null,"1.1 Cumplimentar el cuadro Datos básicos de la pestaña \"Relación de gastos\""]
[null,"1.2 Cumplimentar el cuadro Gastos del proyecto/actividad/servicio subvencionado de la pestaña \"Relación de gastos\""]
[null,"1.3 Tener en cuenta los cuadros \"notas\" y \"obligaciones de la modalidad\" de la pestaña \"Relación de gastos\""]
[null,"1.4 Cumplimentar el cuadro Ingresos del proyecto/actividad/servicio subvencionado de la pestaña \"Relación de ingresos\""]
[null,"1.5 Tener en cuenta los cuadros \"notas\" de la pestaña \"Relación de ingresos\""]
[]
[null,"2. Imprimir las hojas de las 3 pestañas en formato pdf"]
[]
[null,"3. Es necesario que registre la documentación telemáticamente dentro de la convocatoria específica y utilice el código de expediente que sale a la publicación de la resolución provisional y/o definitiva"]
[null,"Enlace para realizar el trámite"]
[null,"Enlace para encontrar código expediente resolución provisional"]

{"sheet":"Relación de gastos","index":1,"n_rows":172,"n_cols":10,"rows_kept":172,"cut":false,"hidden":false,"merged":[[74,9,74,10],[70,9,70,10],[95,9,95,10],[91,0,91,10],[96,9,96,10],[97,0,97,10],[98,9,98,10],[99,9,99,10],[100,9,100,10],[101,9,101,10],[77,9,77,10],[79,0,79,10],[84,0,84,6],[16,9,16,10],[42,9,42,10],[40,9,40,10],[39,9,39,10],[38,9,38,10],[37,9,37,10],[17,0,17,10],[31,9,31,10],[30,9,30,10],[34,9,34,10],[33,9,33,10],[23,0,23,10],[24,9,24,10],[25,9,25,10],[32,9,32,10],[34,0,34,6],[35,0,35,10],[41,0,41,10],[29,0,29,10],[26,9,26,10],[146,0,146,10],[147,0,147,10],[148,0,148,10],[1,0,1,10],[5,0,5,1],[16,0,16,6],[3,2,3,3],[4,2,4,3],[5,2,5,3],[12,9,12,10],[3,0,3,1],[46,9,46,10],[3,4,3,6],[4,4,4,6],[5,4,5,6],[45,9,45,10],[44,9,44,10],[43,9,43,10],[8,2,9,2],[103,0,103,10],[104,9,104,10],[78,0,78,10],[64,0,64,6],[5,7,5,8],[145,0,145,10],[36,9,36,10],[143,0,143,10],[86,9,86,10],[87,9,87,10],[80,9,80,10],[85,0,85,10],[82,9,82,10],[83,9,83,10],[88,9,88,10],[89,9,89,10],[90,0,90,6],[90,9,90,10],[92,9,92,10],[93,9,93,10],[94,9,94,10],[140,9,140,10],[129,9,129,10],[130,9,130,10],[67,9,67,10],[62,9,62,10],[71,0,71,10],[65,0,65,10],[68,9,68,10],[3,7,3,8],[4,7,4,8],[70,0,70,6],[76,9,76,10],[4,0,4,1],[8,1,9,1],[8,0,9,0],[7,0,7,4],[18,9,18,10],[19,9,19,10],[20,9,20,10],[27,9,27,10],[28,0,28,6],[28,9,28,10],[13,9,13,10],[8,9,8,10],[9,9,9,10],[11,0,11,10],[15,9,15,10],[8,3,8,4],[10,0,10,10],[21,9,21,10],[22,0,22,6],[22,9,22,10],[115,0,115,10],[116,9,116,10],[117,9,117,10],[131,9,131,10],[132,0,132,6],[69,9,69,10],[122,9,122,10],[123,9,123,10],[105,9,105,10],[106,9,106,10],[107,9,107,10],[108,0,108,6],[108,9,108,10],[109,0,109,10],[110,9,110,10],[119,9,119,10],[118,9,118,10],[111,9,111,10],[102,0,102,6],[102,9,102,10],[84,9,84,10],[76,0,76,6],[72,9,72,10],[75,9,75,10],[114,9,114,10],[113,9,113,10],[66,9,66,10],[40,0,40,6],[48,9,48,10],[58,9,58,10],[57,9,57,10],[56,9,56,10],[55,9,55,10],[54,9,54,10],[52,9,52,10],[51,9,51,10],[49,9,49,10],[53,0,53,10],[59,0,59,10],[46,0,46,6],[47,0,47,10],[50,9,50,10],[58,0,58,6],[52,0,52,6],[64,9,64,10],[60,9,60,10],[61,9,61,10],[96,0,96,6],[167,0,167,10],[112,9,112,10],[63,9,63,10],[141,4,141,10],[127,0,127,10],[128,9,128,10],[137,9,137,10],[120,0,120,6],[120,9,120,10],[121,0,121,10],[124,9,124,10],[125,9,125,10],[126,0,126,6],[126,9,126,10],[139,9,139,10],[138,0,138,6],[138,9,138,10],[132,9,132,10],[133,0,133,10],[134,9,134,10],[135,9,135,10],[136,9,136,10],[77,0,77,6],[114,0,114,6],[139,0,139,6],[140,0,140,6],[6,0,6,1],[6,2,6,10],[168,0,168,10],[169,0,169,10],[170,0,170,10],[171,0,171,10],[151,0,151,10],[152,0,152,10],[153,0,153,10],[154,0,154,10],[155,0,155,10],[156,0,156,10],[157,0,157,10],[158,0,158,10],[163,0,163,10],[160,0,160,10],[161,0,161,10],[159,0,159,10],[162,0,162,10],[164,0,164,10],[165,0,165,10],[166,0,166,10]]}
[]
["Relació clasificada de totes les despeses realitzades per a l'execució de l'activitat subvencionada"]
["Datos básicos"]
["Organización beneficiaria que lidera:         ",null,null,null,"Importe del coste total del proyecto:",null,null,null,null,"euros"]
["Código de subvención:",null,null,null,"Importe de la subvención otorgada:",null,null,null,null,"euros"]
["Nombre del proyecto subvencionado:",null,null,null,"Periodo de ejecución del proyecto subvencionado:",null,null,null,null,"a"]
["Resto organizaciones firmantes acuerdo intercooperación (si aplica):"]
["Gastos del proyecto/actividad/servicio subvencionado (*)"]
["Núm. de orden (0)","Número de documento: justificantes gasto personal(1), factura o recibo/ticket(2)","Concepto de la factura / \ndocumento probatorio equivalente","Emisor/a de la factura",null,"Fecha de emisión","Importe total de la factura","Importe imputable (dedicado) al proyecto (3)","Importe imputable a la subvención municipall (4)","Observaciones"]
[null,null,null,"NIF","Nombre","dd/mm/aaaa","euros","euros","euros"]
["GASTOS DIRECTOS (Aquellos que se identifican directamente con el proyecto)"]
["D1. Nóminas y seguridad social (régimen general o socios/as cooperativistas en régimen de autónomos) del personal propio vinculado al proyecto subvencionable (máximo 40% importe subvención)"]
["D.1.1"]
[]
[]
[]
["Subtotal D1",null,null,null,null,null,null,{"$f":"SUM(H13:H16)","v":0},{"$f":"SUM(I13:I16)","v":0},{"$f":"IF(I17<=H5*0.25,\"\",\"Error: D1 no pot superar el 25% de la subvenció\")","v":""}]
["D2.  Trabajos realizados por profesionales y empresas externas directamente vinculadas al proyecto"]
["D.2.1"]
[]
[]
[]
["Subtotal D2",null,null,null,null,null,null,{"$f":"SUM(H19:H22)","v":0},{"$f":"SUM(I19:I22)","v":0}]
["D3.  Adquisición de materiales y bienes consumibles íntegramente imputables al proyecto"]
[]
[]
[]
[]
["Subtotal D3",null,null,null,null,null,null,{"$f":"SUM(H25:H28)","v":0},{"$f":"SUM(I25:I28)","v":0}]
["D4. Transporte – mensajería imputables al proyecto"]
[]
[]
[]
[]
["Subtotal D4",null,null,null,null,null,null,{"$f":"SUM(H31:H34)","v":0},{"$f":"SUM(I31:I34)","v":0}]
["D5. Publicidad y propaganda de las actividades directamente vinculadas al proyecto"]
[]
[]
[]
[]
["Subtotal D5",null,null,null,null,null,null,{"$f":"SUM(H37:H40)","v":0},{"$f":"SUM(I37:I40)","v":0}]
["D6. Alojamiento y dietas, del personal contratado y voluntario, vinculados al proyecto"]
[]
[]
[]
[]
["Subtotal D6",null,null,null,null,null,null,{"$f":"SUM(H43:H46)","v":0},{"$f":"SUM(I43:I46)","v":0}]
["D7.  Ayudas al transporte para los/las participantes de los proyectos en caso de que sea necesario de manera justificada"]
[]
[]
[]
[]
["Subtotal D7",null,null,null,null,null,null,{"$f":"SUM(H49:H52)","v":0},{"$f":"SUM(I49:I52)","v":0}]
["D8.  Viajes y desplazamientos imputables a las actividades del proyecto"]
[]
[]
[]
[]
["Subtotal D8",null,null,null,null,null,null,{"$f":"SUM(H55:H58)","v":0},{"$f":"SUM(I55:I58)","v":0}]
["D9.  Tributos, cuando sean abonados directamente por la persona jurídica o física beneficiaria"]
[]
[]
[]
[]
["Subtotal D9",null,null,null,null,null,null,{"$f":"SUM(H61:H64)","v":0},{"$f":"SUM(I61:I64)","v":0}]
["D10. Gastos del informe de auditoría (máximo 1.500€ subvención)"]
[]
[]
[]
[]
["Subtotal D10",null,null,null,null,null,null,{"$f":"SUM(H67:H70)","v":0},{"$f":"SUM(I67:I70)","v":0}]
["D11. Otros gastos que de manera justificada y por la tipología del proyecto puedan imputarse directamente al proyecto"]
[]
[]
[]
[]
["Subtotal D11",null,null,null,null,null,null,{"$f":"SUM(H73:H76)","v":0},{"$f":"SUM(I73:I76)","v":0},{"$f":"IF(I77<=1500,\"\",\"Error: D11 no pot superar els 1500,00 €\")","v":""}]
["TOTAL GASTOS DIRECTOS",null,null,null,null,null,null,{"$f":"H17+H23+H29+H35+H41+H47+H53+H59+H65+H71+H77","v":0},{"$f":"I17+I23+I29+I35+I41+I47+I53+I59+I65+I71+I77","v":0}]
["GASTOS INDIRECTOS (no se pueden asignar directamente al proyecto sin utilizar algún % de asignación) (máximo 10% subvención)"]
["I1.  Personal propio vinculado indirectamente (nóminas y seguridad social)"]
[]
[]
[]
[]
["Subtotal I1",null,null,null,null,null,null,{"$f":"SUM(H81:H84)","v":0},{"$f":"SUM(I81:I84)","v":0}]
["I2.  Seguros"]
[]
[]
[]
[]
["Subtotal I2",null,null,null,null,null,null,{"$f":"SUM(H87:H90)","v":0},{"$f":"SUM(I87:I90)","v":0}]
["I.3 Amortización"]
[]
[]
[]
[]
["Subtotal I3",null,null,null,null,null,null,{"$f":"SUM(H93:H96)","v":0},{"$f":"SUM(I93:I96)","v":0}]
["I.4 Alquiler de bienes inmuebles"]
[]
[]
[]
[]
["Subtotal I4",null,null,null,null,null,null,{"$f":"SUM(H99:H102)","v":0},{"$f":"SUM(I99:I102)","v":0}]
["I.5 Adquisición de materiales y bienes consumibles parcialmente imputables al proyecto subvencionado"]
[]
[]
[]
[]
["Subtotal I5",null,null,null,null,null,null,{"$f":"SUM(H105:H108)","v":0},{"$f":"SUM(I105:I108)","v":0}]
["I.6 Mantenimiento de edificios y/o instalaciones"]
[]
[]
[]
[]
["Subtotal I6",null,null,null,null,null,null,{"$f":"SUM(H111:H114)","v":0},{"$f":"SUM(I111:I114)","v":0}]
["I.7 Comunicaciones (teléfono, correos, conexión a internet)"]
[]
[]
[]
[]
["Subtotal I7",null,null,null,null,null,null,{"$f":"SUM(H117:H120)","v":0},{"$f":"SUM(I117:I120)","v":0}]
["I.8 Gastos financieros"]
[]
[]
[]
[]
["Subtotal I8",null,null,null,null,null,null,{"$f":"SUM(H123:H126)","v":0},{"$f":"SUM(I123:I126)","v":0}]
["I.9 Suministros"]
[]
[]
[]
[]
["Subtotal I9",null,null,null,null,null,null,{"$f":"SUM(H129:H132)","v":0},{"$f":"SUM(I129:I132)","v":0}]
["I.10 Trabajo realizado por otras empresas, parcialmente imputables al proyecto subvencionado (limpieza, seguridad...)"]
[]
[]
[]
[]
["Subtotal I10",null,null,null,null,null,null,{"$f":"SUM(H135:H138)","v":0},{"$f":"SUM(I135:I138)","v":0}]
["TOTAL GASTOS INDIRECTOS",null,null,null,null,null,null,{"$f":"+H85+H91+H97+H103+H109+H115+H121+H127+H133+H139","v":0},{"$f":"+I85+I91+I97+I103+I109+I115+I121+I127+I133+I139","v":0},{"$f":"IF(I140<=H5*0.1,\"\",\"Error: Despeses indirectes no poden superar el 10% de la subvenció\")","v":""}]
["TOTAL GASTOS   ",null,null,null,null,null,null,{"$f":"H78+H140","v":0},{"$f":"I78+I140","v":0}]
[]
["(*)Notas"]
["Se deben relacionar todos los gastos del proyecto/actividad/servicio subvencionado. En el caso de que el número de filas de cada concepto sea insuficiente se puede insertar líneas dentro del mismo concepto, teniendo en cuenta que el sumatorio total incluya las nuevas líneas insertadas."]
["(0) El número de orden debe ser correlativo empezando por D.1.1, D.1.2, D.1.3, D.2.4, etc."]
["(1) Respecto a los gastos de recursos humanos, puede ser subvencionable el coste total salarial mensual, que corresponde a la suma de la retribución bruta que aparece en la nómina del trabajador/a más la cuota de la empresa en la Seg. Social. Los gastos de personal se justifican con la nómina del trabajador/a acompañada de los correspondientes RLC y RNT (anteriores TC1 y TC2) de la TMV y el modelo 111 del IRPF."]
["(2) En el caso de que el documento justificativo del resto de gastos, no sea una factura, sino otro documento probatorio equivalente, como un recibo o justificante (como por dietas o transporte público), indicarlo en la columna \"observaciones\"."]
["(3) En el caso de que un justificante incluya conceptos que no tienen relación con el proyecto/actividad/servicio para el que se ha otorgado la subvención, aquí sólo se debe indicar la parte que realmente se ha dedicado al proyecto."]
["(4) En esta columna se debe indicar el importe total o parcial de la factura que se imputa a la subvención recibida del Ayuntamiento de Barcelona. El total imputado, en esta columna, debe ser igual al importe de la subvención recibida."]
[]
[]
["Modalidad Bc. Proyectos de implementación y acciones de intercooperación, significativas para el desarrollo de los Proyectos de Ciudad del #ESSBCN2030"]
["1. La cuantía de la subvención otorgada no superará el 80% del gasto total del proyecto a subvencionar."]
["2. El importe máximo de subvención para esta modalidad Bc del ámbito temático B. Intercooperación: Implementación y Consolidación es 18.000€."]
["3. En el caso de que la solicitud presentada sobrepase el importe máximo, se considerará como importe solicitado el máximo de lo establecido en la convocatoria."]
["4. En esta modalidad se aceptará la imputación de gastos de personal propio y directamente vinculado al proyecto de las organizaciones participantes del acuerdo de intercooperación presentado para el desarrollo del proyecto subvencionable."]
["5. Se limita con un máximo del 40% el importe de la subvención para gastos de personal propio asignado directamente al proyecto subvencionado."]
["6. En el caso de alquileres de inmuebles, los gastos de alquiler se imputarán a los gastos indirectos con el límite establecido por los mismas."]
["7. Para las subvenciones otorgadas por importe igual o superior a 20.000 € es necesario un informe de auditoría para la justificación. El importe de este informe se considera gasto subvencionable, con un límite máximo de 1.500€."]
["8. Son imputables en esta modalidad los gastos indirectos, detallados en el apartado 13.3. de las bases reguladoras; con un máximo del 10% del importe de la subvención.\n\n"]
["9. No se admitirá ninguna propuesta en esta modalidad que no presente el acuerdo de colaboración por personas jurídicas por el proyecto presentado para recibir esta subvención."]
["10. En caso de realizarse gastos superiores a los importes establecidos por los contratos menores de servicios, suministros y obras de la Ley de Contratos del Sector Público 9/2017, se deberán incorporar tres presupuestos solicitados y argumentar el motivo de la adjudicación en el caso de no ser la propuesta más ventajosa económicamente."]
["11. Los proyectos de esta modalidad deberán entregar a su finalización un producto comunicativo, de acuerdo con el contenido establecido en la convocatoria de la subvención."]
["12. No serán elegibles facturas de empresas emitidas entre las organizaciones participantes del acuerdo de colaboración."]
["13. En ningún caso se considerarán gastos subvencionables:\n> Los impuestos indirectos cuando sean susceptibles de recuperación o compensación.\n> Los gastos de inversión, incluidas las adquisiciones de bienes muebles.\n> Los gastos realizados con fecha anterior al inicio del proyecto y fecha posterior a la finalización del proyecto.\n> Otros gastos que se indiquen en la convocatoria."]
["14. La retribución de las personas contratadas en el marco del proyecto subvencionado no puede ser inferior al Salario Mínimo Interprofesional (SMI), ni a la estipulada en el correspondiente convenio o marco normativo de referencia (punto 7 De las bases 2025: requisitos de los proyectos)."]
["15. Los materiales producidos de difusión, estudios, informes o materiales didácticos utilizados, etc. en el caso de tratarse de gasto elegible de la subvención, deberán tener licencia Creative Commons -Compartir Igual- (share a like) y no podrá tener la condición –Sin Obras Derivadas- (no derivate Works)."]
["16. Los proyectos subvencionados deben fomentar actividades de interés público o social, las cuales deben ser gratuitas para las personas participantes o en ningún caso el precio debe suponer un obstáculo para su participación, buscando otras formas de acceso para personas con dificultades económicas. En el caso de que haya algún tipo de lucro, tendrá que revertir en las propias actividades subvencionadas."]
["17. El Ayuntamiento de Barcelona y sus entidades municipales en ningún caso subvencionarán el mismo proyecto, ejecutado durante el mismo periodo, por ningún otro procedimiento de concesión que no sea el regulado por las bases reguladoras."]
["18. El/la beneficiario/a no podrá alterar en ningún caso el destino de las subvenciones concedidas."]
["19. La organización designada como representante de la agrupación será plenamente responsable del proyecto ante el Ayuntamiento respecto al cumplimiento de las obligaciones establecidas en las bases reguladoras, sin perjuicio de la responsabilidad de las demás organizaciones socias de la agrupación, siéndole de aplicación los requisitos previstos en el punto 6.1 de las bases reguladoras."]
["20. En ningún caso podrán formar parte de la agrupación las organizaciones que hayan recibido otras subvenciones para la ejecución del mismo proyecto de otras administraciones públicas."]

{"sheet":"Relación de ingresos","index":2,"n_rows":72,"n_cols":10,"rows_kept":72,"cut":false,"hidden":false,"merged":[[66,0,66,3],[66,6,66,9],[65,6,65,9],[61,6,61,9],[67,6,67,9],[62,6,62,9],[63,6,63,9],[64,6,64,9],[59,6,59,9],[57,0,57,3],[51,0,51,3],[55,6,55,9],[53,6,53,9],[51,6,51,9],[50,6,50,9],[49,6,49,9],[43,6,43,9],[41,6,41,9],[1,0,1,9],[10,0,10,9],[16,0,16,9],[22,0,22,9],[8,6,9,9],[11,6,11,9],[13,6,13,9],[8,0,9,0],[14,6,14,9],[4,2,4,3],[3,2,3,3],[7,0,7,3],[5,2,5,3],[8,2,8,3],[6,0,6,1],[6,2,6,9],[29,6,29,9],[23,6,23,9],[21,6,21,9],[15,6,15,9],[19,6,19,9],[17,6,17,9],[20,6,20,9],[39,0,39,3],[33,0,33,3],[27,0,27,3],[26,6,26,9],[25,6,25,9],[38,6,38,9],[33,6,33,9],[35,6,35,9],[27,6,27,9],[37,6,37,9],[31,6,31,9],[32,6,32,9],[28,0,28,9],[34,0,34,9],[4,0,4,1],[5,0,5,1],[67,0,67,4],[21,0,21,3],[46,0,46,9],[47,6,47,9],[40,0,40,9],[8,1,9,1],[15,0,15,3],[52,0,52,9],[58,0,58,9],[57,6,57,9],[45,0,45,3],[45,6,45,9],[44,6,44,9],[39,6,39,9]]}
[]
["Detalle de todos los ingresos obtenidos y aportaciones del propio beneficiario para la ejecución de la actividad subvencionada"]
["Datos básicos"]
["Nombre de la persona física/jurídica beneficiaria:",null,{"$f":"IF('Relación de gastos'!C4:D4<>\"\",'Relación de gastos'!C4:D4,\"\")","v":""},null,"Importe del coste total del proyecto :",null,null,{"$f":"IF(+'Relación de gastos'!H4=\"\",\"\",+'Relación de gastos'!H4)","v":""},"euros"]
["Código de subvención:",null,{"$f":"IF('Relación de gastos'!C5:D5<>\"\",'Relación de gastos'!C5:D5,\"\")","v":""},null,"Importe de la subvención otorgada:",null,null,{"$f":"IF(+'Relación de gastos'!H5=\"\",\"\",+'Relación de gastos'!H5)","v":""},"euros"]
["Nombre del proyecto subvencionado:",null,{"$f":"IF('Relación de gastos'!C6:D6<>\"\",'Relación de gastos'!C6:D6,\"\")","v":""},null,"Periodo de ejecución del proyecto subvencionado:",null,null,{"$f":"IF(+'Relación de gastos'!H6=\"\",\"\",+'Relación de gastos'!H6)","v":""},"a",{"$f":"IF(+'Relación de gastos'!K6=\"\",\"\",+'Relación de gastos'!K6)","v":""}]
["Resto organizaciones firmantes acuerdo intercooperación (si aplica):     ",null,{"$f":"IF('Relación de gastos'!C7:D7<>\"\",'Relación de gastos'!C7:D7,\"\")","v":""}]
["Ingresos del proyecto/actividad/servicio subvencionado (*)"]
["núm. de orden(0)","Concepto del ingreso","Emisor/a del ingreso",null,"Fecha de cobro\n(dd/mm/aaaa)","Importe","Observaciones"]
[null,null,"NIF","Nombre","(1)","euros"]
["A. Subvención municipal"]
["A1."]
[]
[]
[]
[null,null,null,null,"Subtotal A",{"$f":"SUM(F12:F15)","v":0}]
["B. Subvenciones de otras administraciones"]
["B1."]
[]
[]
[]
[null,null,null,null,"Subtotal B",{"$f":"SUM(F18:F21)","v":0}]
["C. Subvenciones de ente privados"]
[]
[]
[]
[]
[null,null,null,null,"Subtotal C",{"$f":"SUM(F24:F27)","v":0}]
["D. Recursos propios de la organización aplicados al proyecto"]
[]
[]
[]
[]
[null,null,null,null,"Subtotal D",{"$f":"SUM(F30:F33)","v":0}]
["E. Taquillaje"]
[]
[]
[]
[]
[null,null,null,null,"Subtotal E",{"$f":"SUM(F36:F39)","v":0}]
["F. Cuotas de inscripción"]
[]
[]
[]
[]
[null,null,null,null,"Subtotal F",{"$f":"SUM(F42:F45)","v":0}]
["G. Venta de Productos"]
[]
[]
[]
[]
[null,null,null,null,"Subtotal G",{"$f":"SUM(F48:F51)","v":0}]
["H. Publicidad y/o Esponsorización"]
[]
[]
[]
[]
[null,null,null,null,"Subtotal H",{"$f":"SUM(F54:F57)","v":0}]
["I. Otros ingresos"]
[]
[]
[]
[]
[]
[]
[]
[null,null,null,null,"Subtotal I",{"$f":"SUM(F60:F66)","v":0}]
["Total INGRESOS",null,null,null,null,{"$f":"+F16+F22+F28+F34+F40+F46+F52+F58+F67","v":0}]
[]
[null,"(*) Notas"]
[null,"(0) El número de orden debe ser correlativo empezando por el número A1, A2, A3, B4, etc."]
[null,"(1) En caso de que el ingreso esté pendiente, indicar \"P. Cobro\"."]

{"sheet":"Gastos e ingresos","index":3,"n_rows":50,"n_cols":11,"rows_kept":50,"cut":false,"hidden":false,"merged":[[25,0,26,1],[25,2,26,2],[25,3,26,3],[30,8,30,9],[38,7,40,10],[29,6,29,7],[30,6,30,7],[11,8,12,8],[11,9,12,9],[11,2,12,2],[11,3,12,3],[7,0,7,1],[7,2,7,10],[11,6,12,7],[10,0,10,1],[10,6,10,7],[46,0,46,10],[47,0,47,10],[48,0,48,10],[49,0,49,10],[2,0,2,5],[42,0,42,10],[43,0,43,10],[44,0,44,10],[45,0,45,10],[4,0,4,1],[4,2,4,3],[5,0,5,1],[5,2,5,3],[6,0,6,1],[6,2,6,3],[11,0,12,1]]}
[]
[]
["Estado de los gastos realizados y de los ingresos obtenidos para la ejecución de la actividad subvencionada (*)"]
["Datos básicos"]
["Organización beneficiaria que lidera:         ",null,{"$f":"IF('Relación de gastos'!C4:D4<>\"\",'Relación de gastos'!C4:D4,\"\")","v":""},null,"Importe del coste total del proyecto:",null,null,{"$f":"'Relación de ingresos'!H4","v":""},"euros"]
["Código de subvención:",null,{"$f":"IF('Relación de gastos'!C5:D5<>\"\",'Relación de gastos'!C5:D5,\"\")","v":""},null,"Importe de la subvención otorgada:",null,null,{"$f":"'Relación de ingresos'!H5","v":""},"euros"]
["Nombre del proyecto subvencionado:",null,{"$f":"IF('Relación de gastos'!C6:D6<>\"\",'Relación de gastos'!C6:D6,\"\")","v":""},null,"Periodo de ejecución del proyecto subvencionado:",null,null,null,{"$f":"'Relación de ingresos'!H6","v":""},"a",{"$f":"'Relación de ingresos'!J6","v":""}]
["Resto organizaciones firmantes acuerdo intercooperación: ",null,{"$f":"IF('Relación de gastos'!C7:D7<>\"\",'Relación de gastos'!C7:D7,\"\")","v":""}]
[]
["SUBVENCIONES PARA EL FORTALECIMIENTO DE LA ECONOMÍA SOCIAL Y SOLIDARIA Y LA INTERCOOPERACIÓN 2025"]
["GASTOS PREVISTOS",null,"importe en euros",null,null,null,"INGRESOS PREVISTOS",null,"importe en euros"]
["Gastos directos (aquellos que se identifican directamente con el proyecto)",null,"Previsión inicial o reformulada ya aprobada (1)","Gastos realizados (2)","Diferencia",null,"Ingresos previstos",null,"Previsión inicial (1)","Ingresos obtenidos (3)"]
[null,null,null,null,"(2-1)"]
["Bc","D1. Retribuciones y seguridad social (régimen general o socios/as cooperativistas en régimen de autónomos) del personal propio vinculado al proyecto (máximo 40% subvención",null,{"$f":"'Relación de gastos'!H17","v":0},{"$f":"+C14-D14","v":0},null,"A.","Subvención municipal (importe solicitado a la instancia/otorgado)",null,{"$f":"'Relación de ingresos'!F16","v":0}]
[null,"D2. Trabajos realizados por profesionales y empresas externas directamente vinculadas al proyecto subvencionado",null,{"$f":"'Relación de gastos'!H23","v":0},{"$f":"+C15-D15","v":0},null,"B.","Subvenciones de otras administraciones",null,{"$f":"'Relación de ingresos'!F22","v":0}]
[null,"D3. Adquisición de materiales y bienes consumibles íntegramente imputables al proyecto",null,{"$f":"'Relación de gastos'!H29","v":0},0,null,"C.","Subvenciones de ente privados",null,{"$f":"'Relación de ingresos'!F28","v":0}]
[null,"D4. Transporte – mensajería imputables al proyecto",null,{"$f":"'Relación de gastos'!H35","v":0},0,null,"D.","Recursos propios de la organización aplicados al proyecto",null,{"$f":"'Relación de ingresos'!F34","v":0}]
[null,"D5. Publicidad y propaganda de las actividades directamente vinculadas al proyecto",null,{"$f":"'Relación de gastos'!H41","v":0},0,null,"E.","Taquillaje",null,{"$f":"'Relación de ingresos'!F40","v":0}]
[null,"D6. Alojamiento y dietas, del personal contratado y voluntario, vinculados al proyecto",null,{"$f":"'Relación de gastos'!H47","v":0},0,null,"F.","Cuotas de inscripción",null,{"$f":"'Relación de ingresos'!F46","v":0}]
[null,"D7. Ayudas al transporte para los/las participantes de los proyectos en caso de que sea necesario de manera justificada",null,{"$f":"'Relación de gastos'!H53","v":0},0,null,"G.","Venta de Productos",null,{"$f":"'Relación de ingresos'!F52","v":0}]
[null,"D8. Viajes y desplazamientos imputables a las actividades del proyecto",null,{"$f":"'Relación de gastos'!H59","v":0},0,null,"H","Publicidad y/o Esponsorización",null,{"$f":"'Relación de ingresos'!F58","v":0}]
[null,"D9. Tributos, cuando sean abonados directamente por la persona jurídica o física beneficiaria",null,{"$f":"'Relación de gastos'!H65","v":0},0,null,"I.","Otros ingresos",null,{"$f":"'Relación de ingresos'!F67","v":0}]
[null,"D10. Gastos del informe de auditoría  (máx. 1.500€ subvención)",null,{"$f":"'Relación de gastos'!H71","v":0},0,null,null,"Total Ingresos",{"$f":"SUM(I14:I22)","v":0},{"$f":"SUM(J14:J22)","v":0}]
[null,"D11. Otros gastos que de manera justificada y por la tipología del proyecto puedan imputarse directamente al proyecto",null,{"$f":"'Relación de gastos'!H77","v":0},0]
[null,"Total Gastos Directos",{"$f":"SUM(C14:C24)","v":0},{"$f":"SUM(D14:D24)","v":0},{"$f":"SUM(E14:E24)","v":0}]
["Gastos indirectos \n(se podrán asignar al proyecto haciendo sevir un porcentaje de asignación)",null,"Previsión inicial o reformulada a aprobada (1)","Gastos realizados (2)","Diferencia\n"]
[null,null,null,null,"(2-1)"]
[null,"I.1 Personal propio vinculado indirectamente (nóminas y seguridad social)",null,{"$f":"'Relación de gastos'!H85","v":0},{"$f":"+C28-D28","v":0}]
[null,"I.2 Seguros",null,{"$f":"'Relación de gastos'!H91","v":0},0]
[null,"I.3 Amortización",null,{"$f":"'Relación de gastos'!H97","v":0},0,null,"Ingresos menos gastos ",null,{"$f":"+I23-C40","v":0},{"$f":"+J23-D40","v":0}]
[null,"I.4 Alquiler de bienes inmuebles",null,{"$f":"'Relación de gastos'!H103","v":0},0,null,"Desviación de Gastos (4)",null,"Desviación de ingresos (4)"]
[null,"I.5 Adquisición de materiales y bienes consumibles parcialmente imputables al proyecto",null,{"$f":"'Relación de gastos'!H109","v":0},0,null,"Importe"," % ","Importe","%"]
[null,"I.6 Mantenimiento de edificios y/o instalaciones",null,{"$f":"'Relación de gastos'!H115","v":0},0,null,{"$f":"D39-C39","v":0},{"$f":"D39-C39","v":0},{"$f":"J23-I23","v":0},{"$f":"J23/I23","v":{"$error":"#DIV/0!"}}]
[null,"I.7 Comunicaciones (teléfono, correos, conexión a internet)",null,{"$f":"'Relación de gastos'!H121","v":0},0,null,null,null,"% subvencionado inicialmente o después de reformulación (5)",{"$f":"I14/I23","v":{"$error":"#DIV/0!"}}]
[null,"I.8 Gastos financieros",null,{"$f":"'Relación de gastos'!H127","v":0},0,null,null,null,"% subvencionado tras justificación (6)",{"$f":"+J14/J23","v":{"$error":"#DIV/0!"}}]
[null,"I.9 Suministros",null,{"$f":"'Relación de gastos'!H133","v":0},0]
[null,"I.10 Trabajo realizado por otras empresas, parcialmente imputables al proyecto subvencionable (limpieza, seguridad...)",null,{"$f":"'Relación de gastos'!H139","v":0},0]
[null,"Total Gastos Indirectos (Máx. 10% subv)",{"$f":"SUM(C28:C37)","v":0},{"$f":"SUM(D28:D37)","v":0},{"$f":"SUM(E28:E37)","v":0}]
[null,"Total Gastos",{"$f":"+C25+C38","v":0},{"$f":"+D25+D38","v":0},{"$f":"+E38+E25","v":0}]
[]
[]
["(*) Notas"]
["Las columnas sombreadas en color se irán rellenando automáticamente a partir de los datos introducidos en las pestañas relación de gastos y relación de ingresos. Por lo tanto, no imprima esta hoja hasta haber rellenado los demás."]
["(1) Previsión inicial o reformulación ya aprobada= Se debe indicar la previsión inicial de gastos y de ingresos según lo que se indicó en el proyecto original en el \"plan de viabilidad económica del proyecto - presupuesto general\". En caso de que ya se haya aprobado una reformulación, se debe indicar las cantidades reformuladas."]
["(2) Gastos reales = Coste real total del proyecto subvencionado. Esta columna se actualiza con los datos de la pestaña relación de gastos, no hay que rellenar los datos, sólo habrá que revisar que son correctos."]
["(2-1) Esta columna está vinculada y se actualiza con los datos de las dos columnas anteriores, no hay que rellenar ningún dato."]
["(3) Ingresos reales =Total de ingresos obtenidos para la realización del proyecto subvencionado. Esta columna se actualiza con los datos de la pestaña relación de ingresos, no hay que rellenar los datos, sólo habrá que revisar que son correctos."]
["(4)  Desviación: En el caso de los gastos, la desviación es la diferencia entre gastos reales y la previsión inicial de gastos; y en el caso de ingresos, la diferencia entre los ingresos reales y la previsión inicial de ingresos."]
["(5) % financiación municipal inicial o después de reformulación = porcentaje que supone la subvención municipal (A) respecto del total de ingresos del proyecto."]
["(6) % financiación municipal tras justificación  = porcentaje que supone la subvención municipal (A) respecto del total de ingresos del proyecto subvencionado. En caso de existir una desviación siempre se debe motivar."]